Cogmind - Beta 17.1 @@@ ROGUE MODE // 2026.08.31 @ 01:10:11 Player: Somberlain Result: Destroyed by Y-45 Defender with Heavy Assault Rifle Performance ------------- Evolutions (2) 1000 Regions Visited (8) 1600 Robots Destroyed (65) 325 Value Destroyed (1873) 1873 Prototype IDs (5) 100 Alien Tech Used (0) 0 Bonus (935) 935 TOTAL SCORE: 5833 Bonus ------- Follower Combat Kills 35 Entered Garrisons 400 Used RIF Installer 500 Cogmind --------- Core Integrity 0/550 Matter 163/300 Energy 125/125 System Corruption 1% Temperature Warm (174) Movement Treading (166) Location -8/Garrison Parts ------- > --- POWER (1) -------- Light Ion Engine > --- PROPULSION (3) --- Light Treads Armored Treads Armored Treads > --- UTILITY (5) ------ Medium Storage Unit Improved Signal Interpreter Targeting Computer Hacking Suite > --- WEAPON (2) ------- Minigun Gauss Rifle > --- INVENTORY (10) --- Light Ion Engine Light Treads Light Treads Particle Charger Light Armor Plating EM Pulse Cannon Assault Rifle Heavy Assault Rifle High-powered Shotgun Peak State ------------ > --- POWER ------------ Light Ion Engine > --- PROPULSION ------- Light Treads Armored Treads Armored Treads > --- UTILITY ---------- Medium Storage Unit Improved Signal Interpreter Targeting Computer Hardened Medium Armor Plating Hacking Suite > --- WEAPON ----------- Minigun Gauss Rifle > --- INVENTORY -------- Light Ion Engine Light Treads Light Treads Particle Charger Light Armor Plating EM Pulse Cannon Assault Rifle Heavy Assault Rifle High-powered Shotgun [Rating: 27] Favorites ----------- Power Light Ion Engine Engine Light Ion Engine Power Core Light Nuclear Core Propulsion Aluminum Leg Treads Armored Treads Leg Aluminum Leg Utility Hacking Suite Device Improved Heat Sink Storage Medium Storage Unit Processor Improved Signal Interpreter Hackware Hacking Suite Protection Light Armor Plating Weapon Improved Light Cannon Energy Gun Medium Laser Ballistic Gun Minigun Ballistic Cannon Improved Light Cannon Launcher Improved Grenade Launcher Build | -11 -10 -10 -9 -9 -8 -8 -8 -8 ------- Run | Yrd Mat Min Mat Min Mat Gar Mat Gar Slots Evolved 4 | . . . 2 . 2 . . . Power . | . . . . . . . . . Propulsion 1 | . . . . . 1 . . . Utility 3 | . . . 2 . 1 . . . Weapon . | . . . . . . . . . Parts Attached 52 | 6 3 1 8 4 25 5 . . Power 6 | 1 . . . 3 1 1 . . Engine 5 | 1 . . . 3 . 1 . . Core 1 | . . . . . 1 . . . Reactor . | . . . . . . . . . Propulsion 14 | 2 1 . 1 . 10 . . . Treads 3 | . . . . . 3 . . . Leg 11 | 2 1 . 1 . 7 . . . Wheel . | . . . . . . . . . Hover . | . . . . . . . . . Flight . | . . . . . . . . . Utility 16 | 1 1 1 3 . 7 3 . . Device 5 | . 1 1 . . 3 . . . Storage 2 | 1 . . 1 . . . . . Processor 3 | . . . . . 2 1 . . Hackware 3 | . . . 1 . 2 . . . Protection 3 | . . . 1 . . 2 . . Artifact . | . . . . . . . . . Weapon 16 | 2 1 . 4 1 7 1 . . Energy Gun 6 | 1 1 . 2 . 2 . . . Energy Cannon . | . . . . . . . . . Ballistic Gun 6 | 1 . . . . 4 1 . . Ballistic Cannon 3 | . . . 2 1 . . . . Launcher 1 | . . . . . 1 . . . Special Weapon . | . . . . . . . . . Impact Weapon . | . . . . . . . . . Slashing Weapon . | . . . . . . . . . Piercing Weapon . | . . . . . . . . . Special Melee Weapon . | . . . . . . . . . Unidentified Prototypes 1 | . . . . . 1 . . . Parts Lost 24 | . . . . 7 15 1 . 1 Power 4 | . . . . 2 2 . . . Propulsion 6 | . . . . 2 4 . . . Utility 8 | . . . . 2 5 . . 1 Weapon 6 | . . . . 1 4 1 . . Highest Loss Streak 6 | . . . . 3 6 1 . 1 To Critical Strikes 1 | . . . . . 1 . . . Average Backups 4 | . 1 4 5 3 2 6 7 9 Power . | . . . . . . . 1 1 Propulsion 1 | . . 2 1 . 1 2 1 2 Utility . | . . 1 1 . . 1 1 2 Weapon 1 | . . 1 1 2 . 2 3 4 Tool/Special . | . . . . . . . . . Unused Backups 9 | . . . 1 . 2 . . 6 Power 2 | . . . . . 1 . . 1 Propulsion 3 | . . . . . 1 . . 2 Utility . | . . . . . . . . . Weapon 4 | . . . 1 . . . . 3 Tool/Special . | . . . . . . . . . Average Slot Usage (%) 82 | . 91 100 88 75 63 90 97 99 Engine 8 | . 14 14 11 10 1 3 9 9 Treads 5 | . . . . . 1 27 27 27 Leg 14 | . 28 28 22 12 19 . . . Device 9 | . 5 14 11 10 8 4 . . Storage 10 | . 14 14 11 11 9 9 6 9 Processor 3 | . . . . . 1 14 18 18 Hackware 7 | . . . 5 11 9 9 9 9 Protection 2 | . . . 5 1 . 4 9 8 Energy Gun 8 | . 19 28 18 3 4 . . . Ballistic Gun 4 | . 8 . . . 7 17 18 18 Ballistic Cannon 5 | . . . 3 14 . . . . Peak Build Rating 27 | 6 7 9 16 16 25 27 27 27 Average Rating 14 | 4 6 7 12 12 16 25 26 26 On Entrance 14 | . 6 7 9 16 9 25 27 27 Avg Prop Armor Cover (%) 7 | . . . . . 7 . . . Naked Turns . | . . . . . . . . . Heaviest Build 28 | 14 15 15 27 27 22 28 28 28 Greatest Support 60 | 20 20 20 20 20 60 60 60 60 Greatest Overweight (x) 4 | . . . 1 2 4 . . . Average Overweight (x) . | . . . . 1 . . . . Largest Inventory Capacity 10 | 8 8 8 10 10 10 10 10 10 Average Capacity 9 | 7 8 8 8 10 10 10 8 10 Most Carried 10 | . 4 8 8 9 10 9 9 9 Average Carried 5 | . 1 6 7 5 3 6 7 9 Final Capacity 10 | 8 8 8 10 10 10 10 10 10 Final Carried 9 | . 4 8 7 2 5 9 9 9 Class Distribution -------------------- 49% | Mutant 48% | Scavenger-Mutant Dominant Class ---------------- Mutant | -10/Materials Mutant | -10/Mines Mutant | -9/Materials Scavenger-Mutant | -9/Mines Scavenger-Mutant | -8/Materials Mutant | -8/Garrison Scavenger-Mutant | -8/Materials Scavenger-Mutant | -8/Garrison Resources | -11 -10 -10 -9 -9 -8 -8 -8 -8 ----------- Run | Yrd Mat Min Mat Min Mat Gar Mat Gar Matter Collected 1362 | 217 67 40 40 325 412 261 . . Remotely . | . . . . . . . . . Salvage Created 1824 | . 95 . 352 157 736 311 . 173 Parts 119 | . 4 . 25 19 36 24 . 11 Haulers Intercepted . | . . . . . . . . . Recyclers Shooed 2 | . . . . . 2 . . . Parts Field Recycled . | . . . . . . . . . Retrieved Matter . | . . . . . . . . . Parts Self-Destructed . | . . . . . . . . . Prevented . | . . . . . . . . . Parts Restored . | . . . . . . . . . Kills | -11 -10 -10 -9 -9 -8 -8 -8 -8 ------- Run | Yrd Mat Min Mat Min Mat Gar Mat Gar Combat Hostiles Destroyed 57 | . 2 . 11 14 17 9 . 4 Melee 2 | . . . . . 2 . . . Guns 32 | . 2 . 8 1 8 9 . 4 Cannons 16 | . . . 3 13 . . . . AOE 7 | . . . . . 7 . . . Classes Destroyed 11 | . 1 . 5 2 1 2 . . Worker 4 | . . . 1 1 2 . . . Builder 1 | . . . . 1 . . . . Recycler 1 | . . . . . 1 . . . Operator 1 | . . . 1 . . . . . Watcher 1 | . . . 1 . . . . . Swarmer 23 | . . . 6 12 1 3 . 1 Grunt 21 | . 2 . 3 1 13 . . 2 Duelist 2 | . . . . 1 1 . . . Sentry 8 | . . . 2 . 2 3 . 1 Specialist 1 | . . . . . . 1 . . Hunter 2 | . . . . . . 2 . . Best Kill Streak 10 | . 2 . 5 3 10 3 . 4 Combat Bots Only 8 | . 2 . 4 3 8 3 . 4 Max Kills in Single Turn 3 | . 1 . 2 1 3 2 . 1 Gunslinging 1 | . . . . . . 1 . . Exploded 3 | . . . . . 3 . . . Melee 1 | . . . . . 1 . . . Uniques/NPCs Destroyed . | . . . . . . . . . Combat | -11 -10 -10 -9 -9 -8 -8 -8 -8 -------- Run | Yrd Mat Min Mat Min Mat Gar Mat Gar Hostile Shots Fired 465 | . 10 . 54 117 156 40 . 88 Missed 122 | . 2 . 15 19 51 14 . 21 Hits 343 | . 8 . 39 98 105 26 . 67 Melee 6 | . . . . 2 4 . . . Projectile 337 | . 8 . 39 96 101 26 . 67 Critical Strikes 13 | . 1 . . 1 5 2 . 4 Damage Taken 4061 | . 124 . 388 849 1578 366 . 756 Core 839 | . . . 103 179 413 32 . 112 Absorbed by Shields . | . . . . . . . . . Regen/Repaired (Parts) 218 | . . . . . . . 218 . Core Remaining (%) 76 | 100 . 100 . 29 . . . . Volleys Fired 182 | . 8 2 35 43 56 24 . 14 Largest 2 | . 2 2 2 2 2 2 . 2 Hottest 112 | . 70 100 112 66 65 53 . 53 Shots Fired 305 | . 16 4 70 80 59 48 . 28 Gun 209 | . 16 4 54 6 53 48 . 28 Cannon 90 | . . . 16 74 . . . . Launcher 6 | . . . . . 6 . . . Special . | . . . . . . . . . Kinetic 212 | . 8 . 16 74 38 48 . 28 Thermal 86 | . 8 4 54 6 14 . . . Explosive 6 | . . . . . 6 . . . Electromagnetic 1 | . . . . . 1 . . . Robot Hit Streak 14 | . 4 2 4 4 14 11 . 7 Robot Miss Streak 4 | . 3 1 4 4 3 2 . 3 Penetration Max 1 | . . . . . . . . 1 Secondary Targets 3 | . . . 1 . . 1 . 1 Max Gunslinging Chain 1 | . . . 1 . . 1 . 1 Shots Hit Robots 181 | . 8 3 35 35 46 36 . 18 Core Hits 111 | . 4 . 18 16 44 21 . 8 Critical Kills . | . . . . . . . . . Critical Parts Destroyed . | . . . . . . . . . Critical Strikes 5 | . . . 4 1 . . . . Burn 4 | . . . 4 . . . . . Blast 1 | . . . . 1 . . . . Melee Attacks . | . . . . . . . . . Impact . | . . . . . . . . . Slashing . | . . . . . . . . . Piercing . | . . . . . . . . . Sneak Attacks . | . . . . . . . . . Combat Hostiles . | . . . . . . . . . Follow-up Attacks . | . . . . . . . . . Damage Inflicted 4171 | . 100 13 540 867 1697 543 . 411 Guns 2205 | . 100 13 438 29 671 543 . 411 Cannons 934 | . . . 102 832 . . . . Explosions 959 | . . . . . 959 . . . Melee . | . . . . . . . . . Ramming 73 | . . . . 6 67 . . . Kinetic 2408 | . 49 . 102 832 471 543 . 411 Thermal 716 | . 51 13 438 29 185 . . . Explosive 959 | . . . . . 959 . . . Electromagnetic 15 | . . . . . 15 . . . Impact . | . . . . . . . . . Slashing . | . . . . . . . . . Piercing . | . . . . . . . . . Highest Corruption 1 | . . . . . 1 1 1 1 Average Corruption 1 | . . . . . 1 1 1 1 Corruption Purged . | . . . . . . . . . Corruption Blocked . | . . . . . . . . . Effects 9 | . . . . . 2 5 1 1 Message Errors 4 | . . . . . 1 1 1 1 Matter Fused 1 | . . . . . . 1 . . Energy Discharges 1 | . . . . . . 1 . . Data Loss (minor) 1 | . . . . . 1 . . . Misfires 2 | . . . . . . 2 . . Overload Shots . | . . . . . . . . . Overflow Damage 84 | . . . 3 32 49 . . . Projectiles 35 | . . . 3 32 . . . . Explosions 49 | . . . . . 49 . . . Melee . | . . . . . . . . . Knockbacks 14 | . . . 1 13 . . . . Impact . | . . . . . . . . . Kinetic 13 | . . . 1 12 . . . . Secondary 1 | . . . . 1 . . . . Self-Inflicted Damage 118 | . . . . . 118 . . . Shots 3 | . . . . . 3 . . . Rammed 1 | . . . . . 1 . . . Targets Rammed 39 | . . . . 3 36 . . . Kicked 38 | . . . . 3 35 . . . Crushed . | . . . . . . . . . Highest Temperature 198 | . 159 9 54 . 23 33 . 198 Average Temperature 40 | . 79 6 15 . 8 10 . 97 Received Heat Transfer 1206 | . 87 . 126 30 630 45 . 288 Siege Activations . | . . . . . . . . . Martial Activations . | . . . . . . . . . Shielding Activations . | . . . . . . . . . Robots Disrupted . | . . . . . . . . . Combat Hostiles . | . . . . . . . . . Robots Corrupted . | . . . . . . . . . Combat Hostiles . | . . . . . . . . . Parts Fried . | . . . . . . . . . Impact Corruptions . | . . . . . . . . . Robots Melted . | . . . . . . . . . Combat Hostiles . | . . . . . . . . . Parts Melted 7 | . . . 5 . 2 . . . Heat Transferred 2220 | . 148 37 1517 74 444 . . . Parts Sabotaged . | . . . . . . . . . Parts Stolen . | . . . . . . . . . Parts Stripped . | . . . . . . . . . Power Chain Reactions . | . . . . . . . . . Alert | -11 -10 -10 -9 -9 -8 -8 -8 -8 ------- Run | Yrd Mat Min Mat Min Mat Gar Mat Gar Maximum Alert Level 1 | . . . . . 1 1 . . Low Security (%) 94 | 100 100 100 100 100 83 78 100 100 Level 1 5 | . . . . . 16 21 . . Level 2 . | . . . . . . . . . Level 3 . | . . . . . . . . . Level 4 . | . . . . . . . . . Level 5 . | . . . . . . . . . High Security . | . . . . . . . . . Max Security . | . . . . . . . . . Peak Influence 258 | . 41 32 122 105 258 223 108 132 Initial 108 | . . . . 25 . 14 108 37 Average 46 | . 14 1 34 33 81 109 84 59 Influence Increases 1664 | . 56 47 330 388 529 219 . 95 Destroy 0b10 Robot/C 1160 | . 40 20 220 280 340 180 . 80 Destroy 0b10 Robot/NC 40 | . . . 15 10 15 . . . Destroy Leader 212 | . 10 10 52 50 70 20 . . Allied During Kill 2 | . . 2 . . . . . . Trap Triggered on 0b10 30 | . . . 10 . 20 . . . Successful Hack 34 | . 5 . 15 . . 14 . . Disable Machine 75 | . . . . 45 30 . . . Destroy Structure 36 | . 1 . 3 3 24 5 . . Lose Combat Pursuer 75 | . . 15 15 . 30 . . 15 Influence Decreases 1542 | . 55 45 268 453 506 19 165 31 Entered New Map 189 | . . 1 3 40 . 9 115 21 Time Decay 844 | . 55 24 136 343 236 . 50 . Lost Part 210 | . . . . 70 120 10 . 10 Lost Ally 20 | . . 20 . . . . . . Purge Threat 279 | . . . 129 . 150 . . . Squads Dispatched 5 | . . . 2 . 3 . . . Investigation 2 | . . . 1 . 1 . . . Extermination . | . . . . . . . . . Reinforcement 3 | . . . 1 . 2 . . . Assault . | . . . . . . . . . Garrison . | . . . . . . . . . Intercept . | . . . . . . . . . Searches Triggered . | . . . . . . . . . Construction Impeded 1 | . . . . . 1 . . . Haulers Reinforced . | . . . . . . . . . Active Scanning Responses . | . . . . . . . . . Cargo Convoy Interrupts . | . . . . . . . . . Stealth | -11 -10 -10 -9 -9 -8 -8 -8 -8 --------- Run | Yrd Mat Min Mat Min Mat Gar Mat Gar Distress Signals 4 | . 1 . . . 3 . . . Communications Jammed . | . . . . . . . . . Distress Signals . | . . . . . . . . . Times Spotted 83 | . 4 2 16 14 30 7 . 10 Peak Tracking Total 8 | . 4 2 4 4 8 3 . 8 Tactical Retreats 5 | . . 1 1 . 2 . . 1 Traps | -11 -10 -10 -9 -9 -8 -8 -8 -8 ------- Run | Yrd Mat Min Mat Min Mat Gar Mat Gar Traps Triggered 3 | . . . . . 1 2 . . Indirectly . | . . . . . . . . . Trap Hack Attempts . | . . . . . . . . . Triggered . | . . . . . . . . . Disarmed . | . . . . . . . . . Reprogrammed . | . . . . . . . . . Reused 3 | . . . 1 . 2 . . . Traps Extracted . | . . . . . . . . . Installed 3 | . . . 1 . 2 . . . Triggered 3 | . . . 1 . 2 . . . Most Traps Carried 3 | . . 3 3 2 2 . . . Machines | -11 -10 -10 -9 -9 -8 -8 -8 -8 ---------- Run | Yrd Mat Min Mat Min Mat Gar Mat Gar Machines Disabled 7 | . . . 2 3 2 . . . Max in Single Turn 2 | . . . 2 1 1 . . . Machines Repaired . | . . . . . . . . . Machines Dismantled . | . . . . . . . . . Machines Sabotaged . | . . . . . . . . . Overloaded Fab Kills . | . . . . . . . . . Hacking | -11 -10 -10 -9 -9 -8 -8 -8 -8 --------- Run | Yrd Mat Min Mat Min Mat Gar Mat Gar Machines Accessed 15 | . 2 1 4 . 4 2 2 . Terminals 11 | . 2 1 4 . 2 2 . . Fabricators . | . . . . . . . . . Repair Stations 1 | . . . . . . . 1 . Recycling Units . | . . . . . . . . . Scanalyzers 1 | . . . . . 1 . . . Garrison Access 2 | . . . . . 1 . 1 . Total Hacks 34 | . 3 3 12 . 9 4 3 . Successful 14 | . 2 . 4 . 4 1 3 . Failed 19 | . 1 3 8 . 4 3 . . Catastrophic 6 | . . . 3 . 3 . . . Database Lockouts 1 | . . . . . 1 . . . Manual 23 | . 3 3 12 . 5 . . . Terminals 27 | . 3 3 12 . 5 4 . . Fabricators . | . . . . . . . . . Repair Stations 2 | . . . . . . . 2 . Recycling Units . | . . . . . . . . . Scanalyzers 3 | . . . . . 3 . . . Garrison Access 2 | . . . . . 1 . 1 . Terminal Hacks 8 | . 2 . 4 . 1 1 . . Prototype ID Bank 2 | . 1 . 1 . . . . . Branch Access Points 3 | . 1 . 2 . . . . . Unreport Threat 2 | . . . 1 . 1 . . . Security Stations 1 | . . . . . . 1 . . Fabricator Hacks . | . . . . . . . . . Repair Station Hacks 2 | . . . . . . . 2 . Scan Component 1 | . . . . . . . 1 . Repair 1 | . . . . . . . 1 . Recycling Unit Hacks . | . . . . . . . . . Scanalyzer 2 | . . . . . 2 . . . Retrieve Study 2 | . . . . . 2 . . . Garrison Access Hacks 2 | . . . . . 1 . 1 . Unlock Access 2 | . . . . . 1 . 1 . Unauthorized Hacks . | . . . . . . . . . Terminals . | . . . . . . . . . Fabricators . | . . . . . . . . . Repair Stations . | . . . . . . . . . Recycling Units . | . . . . . . . . . Scanalyzers . | . . . . . . . . . Garrison Access . | . . . . . . . . . Data Cores Recovered 1 | . . . 1 . . . . . Used 1 | . . . 1 . . . . . Hacking Detections 11 | . 1 1 4 . 2 2 1 . Full Trace Events 3 | . . 1 2 . . . . . Feedback Events . | . . . . . . . . . Feedback Blocked . | . . . . . . . . . Robot Schematics Acquired . | . . . . . . . . . Robots Built . | . . . . . . . . . Authchips . | . . . . . . . . . Time . | . . . . . . . . . Total Robot Build Rating . | . . . . . . . . . Part Schematics Acquired . | . . . . . . . . . Parts Built . | . . . . . . . . . Authchips . | . . . . . . . . . Time . | . . . . . . . . . Total Part Build Rating . | . . . . . . . . . Part Studies Acquired 2 | . . . . . 2 . . . Parts Repaired 1 | . . . . . . . 1 . Time 26 | . . . . . . . 26 . Parts Recycled . | . . . . . . . . . Recycled Matter . | . . . . . . . . . Retrieved Matter . | . . . . . . . . . Retrieved Components . | . . . . . . . . . Parts Scanalyzed . | . . . . . . . . . Part Schematics Acquired . | . . . . . . . . . Parts Damaged . | . . . . . . . . . Bothacking | -11 -10 -10 -9 -9 -8 -8 -8 -8 ------------ Run | Yrd Mat Min Mat Min Mat Gar Mat Gar Used RIF Installer 1 | . . . . . . 1 . . Robots Hacked . | . . . . . . . . . Non-combat . | . . . . . . . . . Combat . | . . . . . . . . . Robot Hacks Applied . | . . . . . . . . . Relay Couplers Released . | . . . . . . . . . Fabnet Peak Effective % . | . . . . . . . . . Robots Rewired . | . . . . . . . . . Allies Hacked . | . . . . . . . . . Hacks Repelled . | . . . . . . . . . Allies | -11 -10 -10 -9 -9 -8 -8 -8 -8 -------- Run | Yrd Mat Min Mat Min Mat Gar Mat Gar Total Allies 3 | . . 3 . . . . . . Largest Group 3 | . . 3 . . . . . . Highest-Rated Group 40 | . . 40 . . . . . . Highest-Rated Ally 16 | . . 16 . . . . . . Total Orders . | . . . . . . . . . Ally Attacks 17 | . . 17 . . . . . . Total Damage 133 | . . 133 . . . . . . Kills 1 | . . 1 . . . . . . Allies Corrupted . | . . . . . . . . . Allies Melted . | . . . . . . . . . Intel | -11 -10 -10 -9 -9 -8 -8 -8 -8 ------- Run | Yrd Mat Min Mat Min Mat Gar Mat Gar Active Infowar (turns) . | . . . . . . . . . Robot Analysis Total . | . . . . . . . . . Derelict Logs Recovered 3 | . . 2 . 1 . . . . Drone Launches . | . . . . . . . . . Drone Recoveries . | . . . . . . . . . Exploration | -11 -10 -10 -9 -9 -8 -8 -8 -8 ------------- Run | Yrd Mat Min Mat Min Mat Gar Mat Gar Turns Passed 4359 | 63 140 610 459 1671 637 566 110 103 Spaces Moved 2165 | 47 89 452 202 692 305 294 45 39 Core 7 | 3 . . . . 4 . . . Treads 392 | . . . . . 14 294 45 39 Legs 1766 | 44 89 452 202 692 287 . . . Wheels . | . . . . . . . . . Hover . | . . . . . . . . . Flight . | . . . . . . . . . Fastest Speed 50 | 50 120 120 120 190 120 166 166 166 Average Speed 162 | 115 120 120 127 219 134 166 166 166 Slowest Speed 260 | 120 120 120 190 260 250 166 166 166 Overloaded Moves . | . . . . . . . . . Propulsion Burnouts . | . . . . . . . . . Robots Hopped . | . . . . . . . . . Potential Cave-ins . | . . . . . . . . . Cave-ins Triggered . | . . . . . . . . . Exploration Rate (%) 32 | 4 20 67 20 95 31 42 5 9 Regions Visited 8 Branch Regions 2 Pre-discovered Areas 1 | . . . . 1 . . . . Known Exits Taken 5 | . 1 . 1 1 1 . 1 . Unknown Exits Taken 2 | 1 . 1 . . . . . . Scrap Searched 2 | . . 1 . 1 . . . . Spaces Dug . | . . . . . . . . . Terrain Destroyed 29 | . . . 2 3 22 2 . . Melee . | . . . . . . . . . Projectile 7 | . . . 2 3 . 2 . . AOE 22 | . . . . . 22 . . . Terrain Rammed . | . . . . . . . . . Walls Destroyed . | . . . . . . . . . Machines Disabled . | . . . . . . . . . Actions | -11 -10 -10 -9 -9 -8 -8 -8 -8 --------- Run | Yrd Mat Min Mat Min Mat Gar Mat Gar Total 2700 | 52 104 515 336 764 469 328 79 53 Wait 206 | . 2 58 73 15 27 2 29 . Move 2159 | 46 88 451 201 691 305 293 45 39 Hop . | . . . . . . . . . Pick Up 29 | . 3 3 6 1 9 3 4 . Fast Attach 34 | 6 1 . 4 1 19 2 1 . Attach 4 | . . . . 3 . 1 . . Detach 3 | . . . 2 . 1 . . . Swap 19 | . 2 1 4 3 6 3 . . Drop 22 | . . . 10 4 8 . . . Fire 182 | . 8 2 35 43 56 24 . 14 Melee . | . . . . . . . . . Ram 1 | . . . . . 1 . . . Kick 38 | . . . . 3 35 . . . Crush . | . . . . . . . . . Escape Stasis . | . . . . . . . . . Rewire . | . . . . . . . . . Trap 3 | . . . 1 . 2 . . . Miscellaneous . | . . . . . . . . . Route ------- -11/Scrapyard -10/Materials (discovered 2 exits: *Min x2) -10/Mines -9/Materials (discovered 3 exits: Mat / *Min x2) -9/Mines (discovered 2 exits: *Mat x2) -8/Materials (discovered 2 exits: *Fac / Gar) -8/Garrison -8/Materials -8/Garrison History --------- Turn | Location | Event 6 | -11/Scrapyard | Discovered new exit (range 15) 64 | -11/Scrapyard | Entered Materials 66 | -10/Materials | Identified exit to Mines 204 | -10/Materials | Entered Mines 221 | -10/Mines | Found a hidden stash of uninstalled traps 318 | -10/Mines | Build established: Mutant 364 | -10/Mines | Assisted by bots powering up and referring to "LRC-V3" 417 | -10/Mines | Assembled infested the area 514 | -10/Mines | Learned 2 Materials zone layouts 623 | -10/Mines | Learned Materials garrison access intel 784 | -10/Mines | Discovered new exit (range 5) 797 | -10/Mines | Lost 3 allies 814 | -10/Mines | Entered Materials 814 | -9/Materials | Evolved 2 slots: Utility x2 815 | -9/Materials | Identified exit to Materials 824 | -9/Materials | Identified exit to Mines 1273 | -9/Materials | Entered Mines 1359 | -9/Mines | Build established: Scavenger-Mutant 1426 | -9/Mines | Received a Rocket Launcher from a helpful Derelict 2253 | -9/Mines | Core integrity fell below 50% 2287 | -9/Mines | Lost 3 parts (1p1n1u) 2538 | -9/Mines | Discovered exit to Materials (range 5) 2551 | -9/Mines | Build established: Mutant 2704 | -9/Mines | Discovered exit to Materials (range 9) 2944 | -9/Mines | Entered Materials 2944 | -8/Materials | Evolved 2 slots: Propulsion x1, Utility x1 2945 | -8/Materials | Loaded intel: 1 garrison access location 3069 | -8/Materials | Core integrity fell below 50% 3089 | -8/Materials | Destroyed 8 combat bots 3099 | -8/Materials | Lost 6 parts (1p1n2u2w) 3204 | -8/Materials | Lost 5 parts (3n1u1w) 3380 | -8/Materials | Central database locked down 3449 | -8/Materials | Discovered new exit (range 16) 3500 | -8/Materials | Identified exit to Factory 3581 | -8/Materials | Identified exit to Garrison 3581 | -8/Materials | Entered Garrison 3635 | -8/Garrison | Triggered checkpoint 3982 | -8/Garrison | Learned Materials security intel 4011 | -8/Garrison | Core integrity fell below 20% 4108 | -8/Garrison | Discovered new exit (range 12) 4123 | -8/Garrison | Installed Relay Interface Framework 4145 | -8/Garrison | Identified exit to Materials 4147 | -8/Garrison | Entered Materials 4186 | -8/Materials | Build established: Scavenger-Mutant 4213 | -8/Materials | Repaired Med. Storage Unit 4257 | -8/Materials | Identified exit to Garrison 4257 | -8/Materials | Entered Garrison 4321 | -8/Garrison | Triggered checkpoint 4323 | -8/Garrison | Triggered checkpoint 4360 | -8/Garrison | Destroyed by Y-45 Defender with Heavy Assault Rifle Last Messages --------------- 04321_ Slug penetrates Wall. 04323_ Beams of light sweep through the air. An alarm sounds. 04326_ Slug penetrates Y-45 Defender. 04326_ Y-45 Defender destroyed. 04329_ Slug penetrates Y-45 Defender. 04332_ Slug penetrates G-47 Trooper. 04336_ Critical hit (Burn: +37). 04337_ Slug penetrates G-47 Trooper. 04339_ Critical hit (Burn: +37). 04340_ G-47 Trooper destroyed. 04340_ Slug penetrates Wall. 04342_ YYCF/Q0RMOIO>LYOVL%RD 04343_ Slug penetrates G-47 Trooper. 04351_ G-47 Trooper destroyed. 04351_ Switching to secondary target: Y-45 Defender. 04354_ Critical hit (Burn: +37). 04359_ Slug penetrates G-50 Soldier. 04359_ Hrd. Medium Armor Plating destroyed. Map ----- +----------------------------------------------------+ | ?????????????????????????????????????????????????? | | ?????????????????????????????????????????????????? | | ?????????????????????????????????????????????????? | | ?????????????????????????????????????????????????? | | ?????????????????????????????????????????????????? | | ?????????????????????????????????????????????????? | | ?????????????????????????????????????????????????? | | ?????????????????????????????????????????????????? | | ?????????????????????????????????????????????????? | | ?????????????????????????????????????????????????? | | ?????????????????????????????????????????????????? | | ?????????????????????????????????????????????????? | | ?????????????????????????????????????????????????? | | ?????????????????????????????????????????????????? | | ?????????????????????????????????????????????????? | | ?????????????????????????????????????????????????? | | ?????????????????????????????????????????????????? | | ?????????????????????????????????????????????????? | | ?????????????????????????????????????????????????? | | ?????????????????????????????????????????????????? | | ?????????????????????????????????????????????????? | | ?????????????????????????????????????????????????? | | ?????????????????????????????????????????????????? | | ????????????????????# ???????????????????????????? | | ??????????????# ## ###########??????????????? | | ?????????? =g@ [s* ???????? | | ?????????? Y gg[ =s% ???????? | | ?????????? ! ######## #####??????????? | | ??????????? ##=%[ #####???????# #??????????????? | | ??????????????# !??????????????# #??????????????? | | ???????????????????????????????# #??????????????? | | ???????????????????????????????# #??????????????? | | ???????????????????????????????# #??????????????? | | ???????????????????????????????# #??????????????? | | ???????????????????????????????# #??????????????? | | ???????????????????????????????# #??????????????? | | ???????????????????????????????# #??????????????? | | ???????????????????????????????# #??????????????? | | ???????????????????????????????# #??????????????? | | ???????????????????????????????# #??????????????? | | ???????????????????????????????# #??????????????? | | ???????????????????????????????# #??????????????? | | ???????????????????????????????# #??????????????? | | ???????????????????????????????# #???????#####??? | | ???????????????????????????????# #???????# #??? | | ???????????????????????????????# ######### #### | | ???????????????????????????????# | | ???????????????????????????????# | | ???????????????????????????????################### | | ?????????????????????????????????????????????????? | +----------------------------------------------------+ Best States ------------- Heat Dissipation 50 Energy Generation 14 Energy Capacity 250 Matter Stores 300 Matter Capacity 300 Sight Range 16 Terrain Scan Density 10 Armor Coverage 225 Evasion (%) 55 Targeting Accuracy 8 Recoil Reduction 3 Particle Charging 15 Offensive Hacking 20 Item Schematics ----------------- None Robot Schematics ------------------ None Fabricated ------------ Nothing Repaired ---------- Med. Storage Unit | 12% | -8/Materials Studied --------- Hvy. Assault Rifle | -8/Materials | Hacked Hpw. Shotgun | -8/Materials | Hacked Alien Tech Used ----------------- None Achievements -------------- None Challenges ------------ None Game ------ Seed VariableImpulseAnalyzer Manual? 0 Play Time 00:24:10 Cumulative 43.4 hours Start 2026.08.31 @ 00:46:53 End 2026.08.31 @ 01:10:11 Sessions 1 Manual Loads 0 Difficulty Rogue Special Mode None Game No. 66 Rogue 66 Adventurer 0 Explorer 0 Win Type - Total 0 Types 0/0/0/0/0/0/0/0/0/0 Lore% 31 Gallery% 31 Achievement% 29 Wizard Run 0 Options --------- Layout 1 ASCII 0 Keyboard 0 Movement Mouse Keybinds 0 Fullscreen 2 Font 24/Smallcaps Map View 50x35 Zoom Use 0% Tactical HUD 1 Map Filters NONE Filters NONE Steam 1 RUN: a9b67dbb-115b-4fb0-a78c-a82637f60ee0